[Event "*** Qualifier 1: Titled Tuesday 3|2 Blitz"]
[Site "Chess.com"]
[Date "2017.04.04"]
[Round "7"]
[White "AkshatChandra"]
[Black "johnathan113"]
[Result "1-0"]
[WhiteElo "2637"]
[BlackElo "2418"]
[TimeControl "180+2"]
[EndTime "14:40:59 PDT"]
[Termination "AkshatChandra won by resignation"]

1. d4 {[%clk 0:03:01.9]} 1... Nf6 {[%clk 0:03:00.9]} 2. Nf3 {[%clk 0:03:01.3]}
2... g6 {[%clk 0:03:02.4]} 3. Bg5 {[%clk 0:02:59.8]} 3... Bg7 {[%clk 0:03:03.7]}
4. Nbd2 {[%clk 0:03:00.9]} 4... O-O {[%clk 0:03:04.6]} 5. e4 {[%clk 0:02:51.1]}
5... d6 {[%clk 0:03:03.5]} 6. c3 {[%clk 0:02:51.2]} 6... h6 {[%clk 0:03:03.5]}
7. Bh4 {[%clk 0:02:51.7]} 7... g5 {[%clk 0:03:04.8]} 8. Bg3 {[%clk 0:02:51]}
8... Nh5 {[%clk 0:03:06.4]} 9. Bc4 {[%clk 0:02:27.7]} 9... Nd7 {[%clk
0:03:06.7]} 10. Bb3 {[%clk 0:01:58.7]} 10... e6 {[%clk 0:03:04.4]} 11. O-O
{[%clk 0:01:50]} 11... Kh8 {[%clk 0:02:56.3]} 12. Re1 {[%clk 0:01:41.6]} 12...
Qe7 {[%clk 0:02:54.5]} 13. e5 {[%clk 0:01:33.6]} 13... Nxg3 {[%clk 0:02:53]} 14.
hxg3 {[%clk 0:01:34.6]} 14... dxe5 {[%clk 0:02:23.1]} 15. Nxe5 {[%clk
0:01:33.9]} 15... Nxe5 {[%clk 0:02:20.4]} 16. dxe5 {[%clk 0:01:34.9]} 16... Bd7
{[%clk 0:02:18.1]} 17. Bc2 {[%clk 0:01:28.4]} 17... Bc6 {[%clk 0:02:16.1]} 18.
Qh5 {[%clk 0:01:19.1]} 18... f5 {[%clk 0:01:55.9]} 19. exf6 {[%clk 0:01:13.2]}
19... Qxf6 {[%clk 0:01:57.2]} 20. Qe2 {[%clk 0:01:10.4]} 20... Rad8 {[%clk
0:01:54.8]} 21. Ne4 {[%clk 0:01:03.8]} 21... Qe7 {[%clk 0:01:33.2]} 22. g4
{[%clk 0:00:45.9]} 22... Rf4 {[%clk 0:01:28.4]} 23. Ng3 {[%clk 0:00:44.3]} 23...
Rdf8 {[%clk 0:00:27.7]} 24. Qd3 {[%clk 0:00:44.3]} 24... Bf6 {[%clk 0:00:27.7]}
25. Qg6 {[%clk 0:00:26.6]} 25... Qg7 {[%clk 0:00:20.7]} 26. Qxg7+ {[%clk
0:00:26.1]} 26... Bxg7 {[%clk 0:00:22.6]} 27. f3 {[%clk 0:00:27]} 27... Rd8
{[%clk 0:00:10.6]} 28. Rad1 {[%clk 0:00:25.1]} 28... Rff8 {[%clk 0:00:11]} 29.
Be4 {[%clk 0:00:25.4]} 29... Be5 {[%clk 0:00:07.4]} 30. Rxd8 {[%clk 0:00:19]}
30... Rxd8 {[%clk 0:00:08]} 31. Nf1 {[%clk 0:00:19.8]} 31... Bxe4 {[%clk
0:00:05]} 32. Rxe4 {[%clk 0:00:21.7]} 32... Bf4 {[%clk 0:00:04.5]} 33. Rxe6
{[%clk 0:00:20.3]} 33... Rd1 {[%clk 0:00:05.5]} 34. Kf2 {[%clk 0:00:19.1]} 34...
Rb1 {[%clk 0:00:06.6]} 35. Re2 {[%clk 0:00:19.3]} 35... Bc1 {[%clk 0:00:07.5]}
36. b3 {[%clk 0:00:19.9]} 36... Bb2 {[%clk 0:00:09]} 37. Rc2 {[%clk 0:00:16.2]}
37... Ba3 {[%clk 0:00:10.2]} 38. Ng3 {[%clk 0:00:12]} 38... Bc5+ {[%clk
0:00:10.8]} 39. Ke2 {[%clk 0:00:13.7]} 39... Rg1 {[%clk 0:00:11.6]} 40. Kd3
{[%clk 0:00:15.1]} 40... Bd6 {[%clk 0:00:10.5]} 41. Nf5 {[%clk 0:00:15.5]} 41...
Kh7 {[%clk 0:00:08.6]} 42. Nxd6 {[%clk 0:00:16.4]} 42... cxd6 {[%clk 0:00:09.8]}
43. Re2 {[%clk 0:00:17.5]} 43... Kg7 {[%clk 0:00:08.9]} 44. Re7+ {[%clk
0:00:17.7]} 44... Kf6 {[%clk 0:00:10.5]} 45. Rxb7 {[%clk 0:00:18.7]} 45... Rxg2
{[%clk 0:00:12]} 46. Rxa7 {[%clk 0:00:20.1]} 46... Ke5 {[%clk 0:00:09.7]} 47. a4
{[%clk 0:00:20.8]} 47... Kf4 {[%clk 0:00:10.7]} 48. Rf7+ {[%clk 0:00:21.8]}
48... Kg3 {[%clk 0:00:11.7]} 49. a5 {[%clk 0:00:23.4]} 49... Rb2 {[%clk
0:00:12.2]} 50. b4 {[%clk 0:00:23.9]} 50... h5 {[%clk 0:00:12.1]} 51. gxh5
{[%clk 0:00:24.6]} 1-0

[Event "*** Qualifier 1: Titled Tuesday 3|2 Blitz"]
[Site "Chess.com"]
[Date "2017.04.04"]
[Round "7"]
[White "SergeiAza"]
[Black "TenisMaster"]
[Result "1-0"]
[WhiteElo "2654"]
[BlackElo "2652"]
[TimeControl "180+2"]
[EndTime "14:41:01 PDT"]
[Termination "SergeiAza won by resignation"]

1. e4 {[%clk 0:03:02]} 1... e5 {[%clk 0:02:56.1]} 2. Nf3 {[%clk 0:03:02.9]} 2...
Nc6 {[%clk 0:02:56.9]} 3. Bb5 {[%clk 0:03:03.6]} 3... Nf6 {[%clk 0:02:52.7]} 4.
O-O {[%clk 0:03:03.6]} 4... Nxe4 {[%clk 0:02:52.4]} 5. d4 {[%clk 0:03:05.1]}
5... Nd6 {[%clk 0:02:52.8]} 6. dxe5 {[%clk 0:03:06.1]} 6... Nxb5 {[%clk
0:02:53.4]} 7. a4 {[%clk 0:03:07.7]} 7... Nbd4 {[%clk 0:02:52.8]} 8. Nxd4 {[%clk
0:03:09.2]} 8... d5 {[%clk 0:02:52.9]} 9. Nxc6 {[%clk 0:03:08.1]} 9... bxc6
{[%clk 0:02:53.2]} 10. Qd3 {[%clk 0:03:09.5]} 10... Qd7 {[%clk 0:02:47.1]} 11.
Nd2 {[%clk 0:03:07.4]} 11... Be7 {[%clk 0:02:45.9]} 12. Nf3 {[%clk 0:03:07.7]}
12... h6 {[%clk 0:02:39.9]} 13. Qc3 {[%clk 0:02:42]} 13... c5 {[%clk 0:02:13.2]}
14. e6 {[%clk 0:02:41.3]} 14... Qxe6 {[%clk 0:02:13.8]} 15. Qxg7 {[%clk
0:02:25.1]} 15... Qf6 {[%clk 0:02:11.1]} 16. Qg3 {[%clk 0:02:16]} 16... Bd6
{[%clk 0:02:10.8]} 17. Re1+ {[%clk 0:02:15.3]} 17... Kf8 {[%clk 0:02:11.4]} 18.
Ne5 {[%clk 0:02:06.4]} 18... Bf5 {[%clk 0:01:55.6]} 19. Bf4 {[%clk 0:01:58.7]}
19... Re8 {[%clk 0:01:44.5]} 20. c3 {[%clk 0:01:26.1]} 20... Re7 {[%clk
0:01:33.1]} 21. Ng4 {[%clk 0:01:13.9]} 21... Rxe1+ {[%clk 0:01:26.3]} 22. Rxe1
{[%clk 0:01:13.8]} 22... Qg6 {[%clk 0:01:15.9]} 23. Bxd6+ {[%clk 0:01:07.6]}
23... cxd6 {[%clk 0:01:16.2]} 24. Ne3 {[%clk 0:01:06]} 24... Qxg3 {[%clk
0:01:13.7]} 25. hxg3 {[%clk 0:01:06.7]} 25... Be6 {[%clk 0:01:10]} 26. Rd1
{[%clk 0:01:07.3]} 26... Ke7 {[%clk 0:01:07.1]} 27. Nxd5+ {[%clk 0:01:06.6]}
27... Bxd5 {[%clk 0:01:09]} 28. Rxd5 {[%clk 0:01:07.6]} 28... Rb8 {[%clk
0:01:10.5]} 29. Rd2 {[%clk 0:01:05.6]} 29... Ke6 {[%clk 0:01:08]} 30. g4 {[%clk
0:01:05]} 30... d5 {[%clk 0:01:07.5]} 31. Kh2 {[%clk 0:01:05.3]} 31... Ke5
{[%clk 0:01:03.7]} 32. Kg3 {[%clk 0:01:05.4]} 32... d4 {[%clk 0:01:04.8]} 33.
cxd4+ {[%clk 0:00:32.6]} 33... cxd4 {[%clk 0:01:05.2]} 34. Kf3 {[%clk 0:00:34]}
34... Rb4 {[%clk 0:00:59.7]} 35. Re2+ {[%clk 0:00:30.4]} 35... Kd5 {[%clk
0:00:54.5]} 36. Re7 {[%clk 0:00:29.9]} 36... Rb3+ {[%clk 0:00:55.6]} 37. Kf4
{[%clk 0:00:25.5]} 37... Rxb2 {[%clk 0:00:56.7]} 38. f3 {[%clk 0:00:25.8]} 38...
f6 {[%clk 0:00:55.3]} 39. Rxa7 {[%clk 0:00:25.9]} 39... Kc4 {[%clk 0:00:49.9]}
40. Rc7+ {[%clk 0:00:25.1]} 40... Kd3 {[%clk 0:00:49.3]} 41. Rc6 {[%clk
0:00:25.9]} 41... Ke2 {[%clk 0:00:45.4]} 42. Re6+ {[%clk 0:00:25.8]} 42... Kd2
{[%clk 0:00:44]} 43. Rxf6 {[%clk 0:00:26.1]} 43... d3 {[%clk 0:00:45.3]} 44.
Rxh6 {[%clk 0:00:26]} 44... Rb4+ {[%clk 0:00:46.1]} 45. Kg5 {[%clk 0:00:20.4]}
45... Kc3 {[%clk 0:00:46.8]} 46. f4 {[%clk 0:00:20.5]} 46... d2 {[%clk
0:00:47.4]} 47. Rh1 {[%clk 0:00:20]} 47... Kc2 {[%clk 0:00:43.3]} 48. g3 {[%clk
0:00:21]} 48... d1=Q {[%clk 0:00:37]} 49. Rxd1 {[%clk 0:00:21.8]} 49... Kxd1
{[%clk 0:00:38.9]} 50. f5 {[%clk 0:00:23.2]} 50... Ke2 {[%clk 0:00:39.9]} 51. f6
{[%clk 0:00:24]} 51... Kf3 {[%clk 0:00:37.4]} 52. f7 {[%clk 0:00:24.7]} 52...
Rb8 {[%clk 0:00:38.1]} 53. Kf5 {[%clk 0:00:23.3]} 53... Kxg3 {[%clk 0:00:21.4]}
54. g5 {[%clk 0:00:23.7]} 54... Ra8 {[%clk 0:00:22.6]} 55. g6 {[%clk 0:00:24.2]}
1-0

[Event "*** Qualifier 1: Titled Tuesday 3|2 Blitz"]
[Site "Chess.com"]
[Date "2017.04.04"]
[Round "7"]
[White "FelixBlohberger"]
[Black "amaidel"]
[Result "0-1"]
[WhiteElo "2220"]
[BlackElo "2482"]
[TimeControl "180+2"]
[EndTime "14:41:09 PDT"]
[Termination "amaidel won on time"]

1. d4 {[%clk 0:02:56]} 1... d5 {[%clk 0:03:00.2]} 2. Bf4 {[%clk 0:02:56]} 2...
Nf6 {[%clk 0:03:00.7]} 3. e3 {[%clk 0:02:56.9]} 3... c5 {[%clk 0:03:01.2]} 4. c3
{[%clk 0:02:56.3]} 4... Qb6 {[%clk 0:02:59.9]} 5. Qb3 {[%clk 0:02:50.3]} 5... c4
{[%clk 0:03:00.4]} 6. Qc2 {[%clk 0:02:50.6]} 6... Nc6 {[%clk 0:02:57.1]} 7. Nd2
{[%clk 0:02:46.1]} 7... g6 {[%clk 0:02:55.9]} 8. e4 {[%clk 0:02:44.7]} 8... Nxe4
{[%clk 0:02:49.9]} 9. Nxe4 {[%clk 0:02:44.6]} 9... Bf5 {[%clk 0:02:49.6]} 10. f3
{[%clk 0:02:16.3]} 10... dxe4 {[%clk 0:02:49.9]} 11. fxe4 {[%clk 0:02:14.4]}
11... Bd7 {[%clk 0:02:50.7]} 12. Nf3 {[%clk 0:02:13.2]} 12... Rc8 {[%clk
0:02:46]} 13. d5 {[%clk 0:02:05]} 13... Na5 {[%clk 0:02:40.8]} 14. Be5 {[%clk
0:02:05.3]} 14... f6 {[%clk 0:02:39.4]} 15. Bd4 {[%clk 0:02:05.6]} 15... Qc7
{[%clk 0:02:36.1]} 16. e5 {[%clk 0:02:05.3]} 16... Bg7 {[%clk 0:02:26.1]} 17. d6
{[%clk 0:01:55.8]} 17... Qd8 {[%clk 0:02:10.4]} 18. O-O-O {[%clk 0:01:41.1]}
18... O-O {[%clk 0:02:08.8]} 19. dxe7 {[%clk 0:01:10.9]} 19... Qxe7 {[%clk
0:02:09.3]} 20. exf6 {[%clk 0:01:10.3]} 20... Bxf6 {[%clk 0:02:11.2]} 21. Qd2
{[%clk 0:00:57.9]} 21... Ba4 {[%clk 0:02:08.2]} 22. Re1 {[%clk 0:00:54.7]} 22...
Qd8 {[%clk 0:01:57.4]} 23. Be2 {[%clk 0:00:51.9]} 23... b5 {[%clk 0:01:51.2]}
24. Bd1 {[%clk 0:00:51.7]} 24... Bxd1 {[%clk 0:01:48.9]} 25. Rxd1 {[%clk
0:00:53.5]} 25... a6 {[%clk 0:01:23.4]} 26. Rhe1 {[%clk 0:00:45.2]} 26... Nc6
{[%clk 0:01:21.8]} 27. Bxf6 {[%clk 0:00:41.5]} 27... Qxf6 {[%clk 0:01:23.7]} 28.
Qd5+ {[%clk 0:00:40.5]} 28... Kh8 {[%clk 0:01:21.2]} 29. Re6 {[%clk 0:00:40.8]}
29... Qf4+ {[%clk 0:01:21.4]} 30. Kb1 {[%clk 0:00:42]} 30... Rcd8 {[%clk
0:01:18.9]} 31. Rd6 {[%clk 0:00:36.1]} 31... Rxd6 {[%clk 0:01:02]} 32. Qxd6
{[%clk 0:00:38]} 32... Qf5+ {[%clk 0:01:03.1]} 33. Kc1 {[%clk 0:00:39]} 33...
Rf6 {[%clk 0:00:49.8]} 34. Qd2 {[%clk 0:00:21.7]} 34... g5 {[%clk 0:00:48.2]}
35. Nxg5 {[%clk 0:00:20.7]} 35... Ne5 {[%clk 0:00:47.2]} 36. Qd8+ {[%clk
0:00:20.6]} 36... Rf8 {[%clk 0:00:47.8]} 37. Ne6 {[%clk 0:00:09.1]} 37... Rg8
{[%clk 0:00:28.6]} 38. Qd5 {[%clk 0:00:04.6]} 38... Qf6 {[%clk 0:00:16.4]} 39.
Nd4 {[%clk 0:00:03.9]} 39... Nd3+ {[%clk 0:00:17]} 40. Rxd3 {[%clk 0:00:04.5]}
40... cxd3 {[%clk 0:00:17.3]} 41. Qe4 {[%clk 0:00:05]} 41... Qf1+ {[%clk
0:00:17.6]} 42. Kd2 {[%clk 0:00:05.7]} 42... Rxg2+ {[%clk 0:00:19.1]} 43. Ke3
{[%clk 0:00:06.7]} 43... Re2+ {[%clk 0:00:20]} 44. Kxd3 {[%clk 0:00:07.7]} 44...
Rxe4+ {[%clk 0:00:20.2]} 0-1

[Event "*** Qualifier 1: Titled Tuesday 3|2 Blitz"]
[Site "Chess.com"]
[Date "2017.04.04"]
[Round "7"]
[White "kharov2001"]
[Black "Outsmiter"]
[Result "0-1"]
[WhiteElo "1838"]
[BlackElo "2107"]
[TimeControl "180+2"]
[EndTime "14:41:29 PDT"]
[Termination "Outsmiter won by resignation"]

1. e4 {[%clk 0:02:57.7]} 1... d6 {[%clk 0:03:00.4]} 2. d4 {[%clk 0:02:58.2]}
2... Nf6 {[%clk 0:03:01.8]} 3. Nc3 {[%clk 0:02:59.3]} 3... g6 {[%clk 0:03:03.1]}
4. f4 {[%clk 0:03:00.9]} 4... Bg7 {[%clk 0:03:04.3]} 5. Nf3 {[%clk 0:03:02.4]}
5... O-O {[%clk 0:03:05.3]} 6. Bd3 {[%clk 0:03:03.2]} 6... Na6 {[%clk 0:03:06]}
7. O-O {[%clk 0:03:02.1]} 7... c5 {[%clk 0:03:06.3]} 8. d5 {[%clk 0:02:56.8]}
8... Bg4 {[%clk 0:03:03.9]} 9. h3 {[%clk 0:02:55.4]} 9... Bxf3 {[%clk
0:03:03.9]} 10. Qxf3 {[%clk 0:02:57.3]} 10... Nb4 {[%clk 0:03:01.5]} 11. a3
{[%clk 0:02:49.3]} 11... Nxd3 {[%clk 0:03:01.5]} 12. Qxd3 {[%clk 0:02:51.2]}
12... Nd7 {[%clk 0:02:57.4]} 13. a4 {[%clk 0:02:41.2]} 13... a6 {[%clk
0:02:34.8]} 14. a5 {[%clk 0:02:40.2]} 14... Qc7 {[%clk 0:02:32.7]} 15. Qc4
{[%clk 0:02:36.5]} 15... Bd4+ {[%clk 0:02:28.7]} 16. Kh1 {[%clk 0:02:34.7]}
16... Nf6 {[%clk 0:02:27]} 17. Re1 {[%clk 0:02:22.3]} 17... Nh5 {[%clk
0:02:26.3]} 18. Ne2 {[%clk 0:02:15.7]} 18... Bg7 {[%clk 0:02:23.5]} 19. Ra2
{[%clk 0:02:12.7]} 19... f5 {[%clk 0:02:08.5]} 20. Bd2 {[%clk 0:01:47]} 20...
Qd7 {[%clk 0:02:07.1]} 21. e5 {[%clk 0:01:43.1]} 21... dxe5 {[%clk 0:02:02.9]}
22. fxe5 {[%clk 0:01:34.3]} 22... Bxe5 {[%clk 0:02:04.8]} 23. Bg5 {[%clk
0:01:06.3]} 23... Bd6 {[%clk 0:02:00.4]} 24. Bh6 {[%clk 0:01:00.6]} 24... Rf7
{[%clk 0:02:00.3]} 25. Nc3 {[%clk 0:00:59.3]} 25... f4 {[%clk 0:01:52]} 26. Re6
{[%clk 0:00:55.7]} 26... Ng3+ {[%clk 0:01:50.5]} 27. Kg1 {[%clk 0:00:55.3]}
27... Rf5 {[%clk 0:01:43.4]} 28. Ne4 {[%clk 0:00:45.8]} 28... Nxe4 {[%clk
0:01:27.4]} 29. Qxe4 {[%clk 0:00:43.4]} 29... f3 {[%clk 0:01:19.8]} 30. g4
{[%clk 0:00:42.2]} 30... f2+ {[%clk 0:01:18]} 31. Kf1 {[%clk 0:00:41]} 31... Rf7
{[%clk 0:01:17]} 32. Rxg6+ {[%clk 0:00:38.7]} 32... Kh8 {[%clk 0:01:13.5]} 33.
Re6 {[%clk 0:00:27.4]} 33... Qb5+ {[%clk 0:01:12.8]} 34. c4 {[%clk 0:00:26]}
34... Qb3 {[%clk 0:01:13.1]} 35. Ra1 {[%clk 0:00:20.3]} 35... Qxh3+ {[%clk
0:01:09.7]} 36. Ke2 {[%clk 0:00:19.2]} 36... f1=Q+ {[%clk 0:01:05.1]} 37. Rxf1
{[%clk 0:00:19]} 37... Qxf1+ {[%clk 0:01:07]} 38. Kd2 {[%clk 0:00:20.1]} 38...
Rf2+ {[%clk 0:01:04.7]} 39. Kc3 {[%clk 0:00:20.5]} 39... Rf3+ {[%clk 0:01:01.8]}
40. Kc2 {[%clk 0:00:19.1]} 40... Qg2+ {[%clk 0:01:01.1]} 41. Kb1 {[%clk
0:00:19.6]} 41... Rf1+ {[%clk 0:00:50.2]} 42. Ka2 {[%clk 0:00:20.3]} 42... Qxe4
{[%clk 0:00:50.6]} 43. Rxe4 {[%clk 0:00:22.2]} 43... Rg8 {[%clk 0:00:49.8]} 44.
Kb3 {[%clk 0:00:20.4]} 44... Rg6 {[%clk 0:00:49.8]} 45. g5 {[%clk 0:00:20.8]}
45... Rf4 {[%clk 0:00:46.7]} 46. Re2 {[%clk 0:00:18.6]} 46... Kg8 {[%clk
0:00:47.1]} 47. Kc3 {[%clk 0:00:17.8]} 47... Kf7 {[%clk 0:00:47.6]} 48. b3
{[%clk 0:00:18.7]} 48... Ke8 {[%clk 0:00:47.8]} 49. Kc2 {[%clk 0:00:19.1]} 49...
Kd7 {[%clk 0:00:48.5]} 50. Kc3 {[%clk 0:00:20.3]} 50... e6 {[%clk 0:00:46.6]}
51. dxe6+ {[%clk 0:00:19]} 51... Rxe6 {[%clk 0:00:48.5]} 52. Rd2 {[%clk
0:00:18.6]} 52... Re3+ {[%clk 0:00:48]} 53. Kc2 {[%clk 0:00:18.3]} 53... Rg3
{[%clk 0:00:40.1]} 54. g6 {[%clk 0:00:18.3]} 54... Rf6 {[%clk 0:00:30.3]} 55.
gxh7 {[%clk 0:00:18.6]} 55... Rxh6 {[%clk 0:00:30.2]} 0-1

[Event "*** Qualifier 1: Titled Tuesday 3|2 Blitz"]
[Site "Chess.com"]
[Date "2017.04.04"]
[Round "7"]
[White "MorpheusPro"]
[Black "twitchTriniCupid"]
[Result "1-0"]
[WhiteElo "2097"]
[BlackElo "2151"]
[TimeControl "180+2"]
[EndTime "14:41:36 PDT"]
[Termination "MorpheusPro won by resignation"]

1. d4 {[%clk 0:02:58.4]} 1... Nf6 {[%clk 0:02:59.8]} 2. c4 {[%clk 0:02:58.9]}
2... e6 {[%clk 0:03:01.1]} 3. Nc3 {[%clk 0:03:00]} 3... Bb4 {[%clk 0:03:02.3]}
4. Nf3 {[%clk 0:03:01]} 4... d5 {[%clk 0:03:03]} 5. Bg5 {[%clk 0:03:01.6]} 5...
h6 {[%clk 0:03:03.4]} 6. Bh4 {[%clk 0:03:01.8]} 6... O-O {[%clk 0:03:03.8]} 7.
e3 {[%clk 0:03:00.3]} 7... c5 {[%clk 0:03:01.7]} 8. Be2 {[%clk 0:02:59.8]} 8...
dxc4 {[%clk 0:02:59.8]} 9. Bxc4 {[%clk 0:02:59.6]} 9... Nc6 {[%clk 0:02:54.9]}
10. O-O {[%clk 0:02:58.8]} 10... Na5 {[%clk 0:02:44.1]} 11. Bd3 {[%clk 0:02:55]}
11... c4 {[%clk 0:02:39]} 12. Bc2 {[%clk 0:02:52.7]} 12... Be7 {[%clk 0:02:11]}
13. Qe2 {[%clk 0:02:49.6]} 13... Nd5 {[%clk 0:02:00.3]} 14. Bxe7 {[%clk
0:02:42.8]} 14... Qxe7 {[%clk 0:01:57.9]} 15. Ne5 {[%clk 0:02:38.7]} 15... Qc7
{[%clk 0:01:58]} 16. Qf3 {[%clk 0:02:18.9]} 16... Nb4 {[%clk 0:01:37.9]} 17. Bb1
{[%clk 0:02:12.9]} 17... Bd7 {[%clk 0:01:23.2]} 18. Qe4 {[%clk 0:02:04.9]} 18...
f5 {[%clk 0:01:19.2]} 19. Qh4 {[%clk 0:01:59.5]} 19... Bc6 {[%clk 0:01:11.7]}
20. e4 {[%clk 0:01:39.5]} 20... Rad8 {[%clk 0:00:54.6]} 21. exf5 {[%clk
0:01:29.3]} 21... exf5 {[%clk 0:00:51.6]} 22. Ng6 {[%clk 0:01:12.8]} 22... Rf6
{[%clk 0:00:45.3]} 23. Ne5 {[%clk 0:00:47.8]} 23... Nd5 {[%clk 0:00:33]} 24. Ne2
{[%clk 0:00:37.8]} 24... b5 {[%clk 0:00:24.4]} 25. Bc2 {[%clk 0:00:37]} 25... f4
{[%clk 0:00:20.5]} 26. Nf3 {[%clk 0:00:32.2]} 26... Rdf8 {[%clk 0:00:19.3]} 27.
Rad1 {[%clk 0:00:30.7]} 27... Nb4 {[%clk 0:00:20.2]} 28. Bb1 {[%clk 0:00:30.5]}
28... Bxf3 {[%clk 0:00:21.1]} 29. gxf3 {[%clk 0:00:31.3]} 29... Qd6 {[%clk
0:00:21.7]} 30. Nc3 {[%clk 0:00:30.7]} 30... g5 {[%clk 0:00:21.9]} 31. Qh5
{[%clk 0:00:30.6]} 31... R6f7 {[%clk 0:00:17.5]} 32. Ne4 {[%clk 0:00:29.3]}
32... Qb6 {[%clk 0:00:16.4]} 33. d5 {[%clk 0:00:27.3]} 33... Nd3 {[%clk
0:00:16.1]} 34. Bxd3 {[%clk 0:00:26.2]} 34... cxd3 {[%clk 0:00:18]} 35. Rxd3
{[%clk 0:00:26.6]} 35... Kg7 {[%clk 0:00:17.1]} 36. d6 {[%clk 0:00:25.7]} 36...
Rd8 {[%clk 0:00:16.8]} 37. Rfd1 {[%clk 0:00:25.4]} 37... Nc4 {[%clk 0:00:17.5]}
38. Qg4 {[%clk 0:00:22.8]} 38... Ne5 {[%clk 0:00:17.8]} 39. Qe6 {[%clk
0:00:21.7]} 39... Nxd3 {[%clk 0:00:17.3]} 40. Rxd3 {[%clk 0:00:22.3]} 40... Qb7
{[%clk 0:00:15.4]} 41. Rd5 {[%clk 0:00:20.4]} 41... Qd7 {[%clk 0:00:15.1]} 42.
Nxg5 {[%clk 0:00:20.1]} 42... hxg5 {[%clk 0:00:13.8]} 43. Rxg5+ {[%clk
0:00:20.5]} 43... Kf8 {[%clk 0:00:14.9]} 44. Qh6+ {[%clk 0:00:20.3]} 44... Rg7
{[%clk 0:00:16.1]} 45. Qh8+ {[%clk 0:00:20.3]} 45... Kf7 {[%clk 0:00:16.8]} 46.
Rxg7+ {[%clk 0:00:19.7]} 46... Ke6 {[%clk 0:00:18.2]} 47. Qh6+ {[%clk
0:00:20.1]} 47... Kd5 {[%clk 0:00:17.3]} 48. Rxd7 {[%clk 0:00:20.9]} 48... Rxd7
{[%clk 0:00:19.2]} 49. Qxf4 {[%clk 0:00:21.5]} 49... Rxd6 {[%clk 0:00:20.7]} 50.
Qe4+ {[%clk 0:00:22.3]} 50... Kc5 {[%clk 0:00:22]} 51. Qe5+ {[%clk 0:00:22.8]}
51... Rd5 {[%clk 0:00:22.8]} 52. Qc3+ {[%clk 0:00:23.4]} 52... Kd6 {[%clk
0:00:23.3]} 53. Kg2 {[%clk 0:00:24.4]} 53... a6 {[%clk 0:00:24.6]} 54. f4 {[%clk
0:00:25.2]} 1-0

[Event "*** Qualifier 1: Titled Tuesday 3|2 Blitz"]
[Site "Chess.com"]
[Date "2017.04.04"]
[Round "7"]
[White "Fandorine"]
[Black "poummba"]
[Result "1-0"]
[WhiteElo "2637"]
[BlackElo "2390"]
[TimeControl "180+2"]
[EndTime "14:41:43 PDT"]
[Termination "Fandorine won by resignation"]

1. e4 {[%clk 0:03:02]} 1... c6 {[%clk 0:03:00.4]} 2. d4 {[%clk 0:03:01.2]} 2...
d5 {[%clk 0:03:02.3]} 3. e5 {[%clk 0:03:00.3]} 3... c5 {[%clk 0:03:03.6]} 4. c4
{[%clk 0:02:58.2]} 4... cxd4 {[%clk 0:03:03.8]} 5. Ne2 {[%clk 0:02:59.4]} 5...
Nc6 {[%clk 0:03:00.5]} 6. Nxd4 {[%clk 0:02:59.7]} 6... e6 {[%clk 0:03:01.3]} 7.
Nc3 {[%clk 0:02:59.3]} 7... Bc5 {[%clk 0:03:02.3]} 8. Nxc6 {[%clk 0:02:59.2]}
8... bxc6 {[%clk 0:03:03.5]} 9. Qg4 {[%clk 0:03:00.6]} 9... Ne7 {[%clk
0:02:52.9]} 10. Bd3 {[%clk 0:02:35.6]} 10... Ng6 {[%clk 0:02:46.8]} 11. O-O
{[%clk 0:02:29.2]} 11... O-O {[%clk 0:02:41]} 12. Bxg6 {[%clk 0:02:19.4]} 12...
fxg6 {[%clk 0:02:36.7]} 13. Bg5 {[%clk 0:02:18.5]} 13... Qb6 {[%clk 0:02:34.7]}
14. Na4 {[%clk 0:02:16.2]} 14... Bxf2+ {[%clk 0:02:22.1]} 15. Kh1 {[%clk
0:02:16.5]} 15... Qd4 {[%clk 0:02:18]} 16. Qe2 {[%clk 0:01:54.3]} 16... Ba6
{[%clk 0:02:04.6]} 17. b3 {[%clk 0:01:53.3]} 17... dxc4 {[%clk 0:02:00.8]} 18.
Rad1 {[%clk 0:01:43.1]} 18... cxb3 {[%clk 0:01:34.4]} 19. Qxa6 {[%clk
0:01:42.5]} 19... Qxe5 {[%clk 0:01:31.5]} 20. Be7 {[%clk 0:01:36.3]} 20... Rfe8
{[%clk 0:00:50]} 21. axb3 {[%clk 0:01:18.8]} 21... Rxe7 {[%clk 0:00:43.5]} 22.
Rxf2 {[%clk 0:01:18.1]} 22... Qe3 {[%clk 0:00:40.3]} 23. Qxc6 {[%clk 0:01:12.2]}
23... Rb8 {[%clk 0:00:36.4]} 24. Rf3 {[%clk 0:00:58.3]} 24... Qe2 {[%clk
0:00:37.5]} 25. Rdf1 {[%clk 0:00:55.2]} 25... h6 {[%clk 0:00:37.7]} 26. Nc3
{[%clk 0:00:50.5]} 26... Qc2 {[%clk 0:00:36]} 27. Qd6 {[%clk 0:00:50.9]} 27...
Reb7 {[%clk 0:00:33.9]} 28. Qxe6+ {[%clk 0:00:48.7]} 28... Kh7 {[%clk
0:00:35.3]} 29. Ne4 {[%clk 0:00:23.4]} 29... Rxb3 {[%clk 0:00:33.5]} 30. Nf6+
{[%clk 0:00:19.9]} 30... Kh8 {[%clk 0:00:18.4]} 31. Rxb3 {[%clk 0:00:20.3]}
31... Qxb3 {[%clk 0:00:17.9]} 32. Nd5 {[%clk 0:00:21.3]} 32... Rd8 {[%clk
0:00:12.1]} 33. Nf4 {[%clk 0:00:14.6]} 33... Qxe6 {[%clk 0:00:08.3]} 34. Nxe6
{[%clk 0:00:16.5]} 34... Re8 {[%clk 0:00:06.2]} 35. Nc5 {[%clk 0:00:15.2]} 35...
Rc8 {[%clk 0:00:05]} 36. Nb3 {[%clk 0:00:10.8]} 36... Rb8 {[%clk 0:00:04.5]} 37.
Na5 {[%clk 0:00:10.7]} 37... Rb5 {[%clk 0:00:04.2]} 38. Ra1 {[%clk 0:00:11.3]}
38... g5 {[%clk 0:00:04.6]} 39. h3 {[%clk 0:00:10.8]} 39... a6 {[%clk
0:00:03.5]} 40. Nc4 {[%clk 0:00:11]} 40... Rc5 {[%clk 0:00:04.3]} 41. Nd2 {[%clk
0:00:09.6]} 41... a5 {[%clk 0:00:04.8]} 42. Nb3 {[%clk 0:00:10.3]} 42... Rc6
{[%clk 0:00:05.1]} 43. Nxa5 {[%clk 0:00:11]} 43... Ra6 {[%clk 0:00:06.2]} 44.
Nb3 {[%clk 0:00:12.4]} 44... Rb6 {[%clk 0:00:05.8]} 45. Nd2 {[%clk 0:00:13.3]}
45... Rb2 {[%clk 0:00:06.5]} 46. Ne4 {[%clk 0:00:14.5]} 46... Kh7 {[%clk
0:00:07.5]} 47. Ra6 {[%clk 0:00:12.9]} 47... Re2 {[%clk 0:00:08.1]} 48. Ng3
{[%clk 0:00:13.9]} 48... Rc2 {[%clk 0:00:09.1]} 49. Kh2 {[%clk 0:00:15.3]} 49...
Rc5 {[%clk 0:00:09.7]} 50. Nh5 {[%clk 0:00:16.2]} 50... Rc7 {[%clk 0:00:10.7]}
51. Ng3 {[%clk 0:00:14.5]} 51... Rb7 {[%clk 0:00:12]} 52. Nf5 {[%clk 0:00:14.7]}
52... Rc7 {[%clk 0:00:11.6]} 53. Re6 {[%clk 0:00:15.4]} 53... Rb7 {[%clk
0:00:12.7]} 54. Re7 {[%clk 0:00:16.5]} 54... Rxe7 {[%clk 0:00:13.8]} 55. Nxe7
{[%clk 0:00:17.5]} 55... g6 {[%clk 0:00:15.7]} 56. g4 {[%clk 0:00:18.2]} 56...
Kg7 {[%clk 0:00:17.6]} 57. Kg3 {[%clk 0:00:19.6]} 57... Kf6 {[%clk 0:00:19.5]}
58. Nd5+ {[%clk 0:00:20.2]} 58... Ke5 {[%clk 0:00:21]} 59. Nc3 {[%clk
0:00:20.4]} 59... h5 {[%clk 0:00:22.3]} 60. Kf3 {[%clk 0:00:19.8]} 60... Kd4
{[%clk 0:00:22.1]} 61. Ne4 {[%clk 0:00:20.8]} 1-0